bitfinex/quotes_SOLUSD_20250928
["timestamp","ask_amount","ask_price","bid_price","bid_amount"]
[1759071908572,2.40992474,203.38,203.32,1.73992474]
[1759071908754,2.40992474,203.38,203.32,2.38992474]
[1759071908956,0.67,203.38,203.32,2.38992474]
[1759071909153,2.40992474,203.38,203.32,2.38992474]
[1759071909573,0.67,203.38,203.32,2.38992474]
[1759071909964,2.40992474,203.38,203.32,2.38992474]
[1759071910152,0.67,203.38,203.32,2.38992474]
[1759071910349,2.40992474,203.38,203.32,2.38992474]
[1759071910779,2.40992474,203.38,203.32,0.65]
[1759071910971,2.40992474,203.38,203.32,2.38992474]
[1759071911773,0.67,203.38,203.33,1.73992474]
[1759071912249,5.0,203.39,203.34,2.42992474]
[1759071912452,5.69,203.39,203.35,1.73992474]
[1759071912654,5.0,203.39,203.37,1.73992474]
[1759071912870,5.0,203.39,203.38,0.69]
[1759071913271,5.0,203.39,203.38,2.42992474]
[1759071914778,5.0,203.39,203.38,1.73992474]
[1759071915175,5.0,203.39,203.38,2.42992474]
[1759071915473,5.0,203.39,203.38,0.69]
[1759071915673,5.0,203.39,203.38,2.42992474]
[1759071916376,5.0,203.39,203.38,7.34682905]
[1759071917363,5.0,203.39,203.38,2.42992474]
[1759071917766,5.0,203.39,203.35,5.0]
[1759071917767,5.69,203.39,203.35,13.59559401]
[1759071918057,0.69,203.38,203.35,13.59559401]
[1759071918576,1.73992474,203.38,203.35,13.59559401]
[1759071918875,1.73992474,203.38,203.34,0.69]
[1759071919077,2.42992474,203.38,203.34,0.69]
[1759071919273,1.73992474,203.38,203.34,0.69]
[1759071920076,5.0,203.39,203.34,0.69]
[1759071920279,1.73992474,203.38,203.34,0.69]
[1759071921077,5.69,203.39,203.34,0.69]
[1759071921263,1.73992474,203.38,203.34,0.69]
[1759071921459,1.73992474,203.38,203.35,0.72]
[1759071922176,1.73992474,203.36,203.26,4.91961759]
[1759071922385,1.73992474,203.32,203.29,0.72]
[1759071922881,1.73992474,203.32,203.28,13.59559401]
[1759071923382,1.73992474,203.3,203.25,12.67969896]
[1759071923576,1.73992474,203.3,203.26,14.31559401]
[1759071923775,1.73992474,203.28,203.23,41.01992474]
[1759071923987,2.45992474,203.28,203.23,39.28]
[1759071924286,1.73992474,203.28,203.24,14.31559401]
[1759071924479,1.73992474,203.29,203.25,0.72]
[1759071924980,1.73992474,203.33,203.27,15.33551875]
[1759071925279,1.73992474,203.34,203.28,2.45992474]
[1759071926085,0.72,203.35,203.29,2.45992474]
[1759071926285,2.45992474,203.35,203.29,2.45992474]
[1759071926460,1.73992474,203.34,203.29,0.72]
[1759071926668,1.73992474,203.32,203.27,14.31559401]
[1759071926979,1.73992474,203.3,203.24,37.95969896]
[1759071927179,1.73992474,203.29,203.24,25.55529297]
[1759071927359,1.73992474,203.27,203.21,2.45992474]
[1759071927564,1.73992474,203.25,203.18,53.36348375]
[1759071927866,0.72,203.25,203.18,41.01992474]
[1759071928068,1.73992474,203.24,203.19,13.59559401]
[1759071928278,2.45992474,203.24,203.19,14.31559401]
[1759071930084,2.45992474,203.24,203.19,13.59559401]
[1759071930285,1.73992474,203.21,203.17,0.72]
[1759071930470,2.45992474,203.21,203.15,14.31559401]
[1759071930861,0.72,203.24,203.18,1.73992474]
[1759071931067,2.45992474,203.24,203.19,0.72]
[1759071931281,1.73992474,203.23,203.19,0.72]
[1759071931573,1.73992474,203.22,203.17,14.31559401]
[1759071931765,1.73992474,203.22,203.17,13.59559401]
[1759071932077,1.73992474,203.22,203.18,0.72]
[1759071932680,1.73992474,203.19,203.13,39.28]
[1759071932880,1.73992474,203.19,203.13,41.01992474]
[1759071933113,1.73992474,203.14,203.11,13.59559401]
[1759071933273,1.73992474,203.13,203.09,13.59559401]
[1759071933589,1.73992474,203.11,202.98,53.46]
[1759071933775,1.73992474,203.1,203.04,2.45992474]
[1759071934084,1.73992474,203.1,203.06,13.59559401]
[1759071934392,1.73992474,203.1,203.06,0.72]
[1759071935304,2.45992474,203.09,203.03,14.31559401]
[1759071935585,1.73992474,203.08,203.03,14.31559401]
[1759071935767,1.73992474,203.09,203.04,0.72]
[1759071935963,1.73992474,203.09,203.03,20.26086724]
[1759071935964,1.73992474,203.1,203.05,0.72]
[1759071936193,1.73992474,203.1,203.06,0.72]
[1759071936584,1.73992474,203.09,203.04,0.72]
[1759071936783,2.45992474,203.08,203.02,40.39992474]
[1759071936978,1.73992474,203.07,203.02,38.66]
[1759071937178,1.73992474,203.07,203.02,39.38]
[1759071937379,1.73992474,203.07,203.03,0.72]
[1759071937688,1.73992474,203.06,203.03,0.72]
[1759071938687,1.73992474,203.04,203.01,0.2]
[1759071938892,1.73992474,203.03,203.01,0.2]
[1759071939087,1.73992474,203.02,203.01,0.2]
[1759071939477,2.45992474,203.02,203.01,0.2]
[1759071940177,1.73992474,203.02,203.01,0.2]
[1759071940767,158.88,203.11,203.01,2.65992474]
[1759071940974,1.73992474,203.07,203.01,7.5857824]
[1759071941174,1.73992474,203.07,203.02,0.72]
[1759071941373,2.45992474,203.07,203.02,0.72]
[1759071941588,1.73992474,203.06,203.01,0.2]
[1759071941792,1.73992474,203.06,203.03,0.72]
[1759071942291,1.73992474,203.06,203.01,2.65992474]
[1759071942592,1.73992474,203.06,203.02,0.72]
[1759071942795,0.72,203.12,203.04,1.73992474]
[1759071942993,1.73992474,203.1,203.05,1.73992474]
[1759071943195,2.45992474,203.1,203.05,0.72]
[1759071944315,0.72,203.1,203.05,0.72]
[1759071944492,1.73992474,203.09,203.05,0.72]
[1759071945108,0.72,203.1,203.05,0.72]
[1759071945408,1.73992474,203.09,203.05,0.72]
[1759071946101,2.45992474,203.1,203.05,0.72]
[1759071946301,2.45992474,203.1,203.05,2.45992474]
[1759071947208,2.45992474,203.1,203.05,0.72]
[1759071947413,1.73992474,203.1,203.05,0.72]
[1759071947602,0.72,203.09,203.04,6.66500605]
[1759071947783,1.73992474,203.1,203.05,0.72]
[1759071947978,2.45992474,203.1,203.05,0.72]
[1759071948182,0.72,203.1,203.05,0.72]
[1759071948400,0.72,203.09,203.05,0.72]
[1759071948788,2.72208035,203.1,203.05,5.64487125]
[1759071949299,0.72,203.09,203.01,0.2]
[1759071949498,2.72208035,203.1,203.05,0.72]
[1759071949499,3.44208035,203.1,203.05,0.72]
[1759071950002,3.44208035,203.1,203.05,3.44208035]
[1759071950194,0.72,203.1,203.05,3.44208035]
[1759071950401,2.72208035,203.15,203.09,2.72208035]
[1759071950588,2.72208035,203.15,203.09,3.39208035]
[1759071950904,0.72,203.16,203.11,2.72208035]
[1759071951200,0.72,203.16,203.12,3.39208035]
[1759071951704,0.72,203.16,203.12,0.67]
[1759071952106,3.40208035,203.15,203.09,0.67]
[1759071952404,2.72208035,203.15,203.1,2.72208035]
[1759071952613,2.72208035,203.16,203.1,2.72208035]
[1759071952802,2.72208035,203.16,203.11,0.67]
[1759071952999,0.68,203.16,203.11,0.67]
[1759071953200,3.40208035,203.16,203.11,0.67]
[1759071953598,0.68,203.15,203.04,0.67]
[1759071953802,2.72208035,203.09,203.04,0.67]
[1759071954108,2.72208035,203.1,203.05,0.67]
[1759071954311,0.68,203.17,203.08,2.72208035]
[1759071954524,2.72208035,203.15,203.09,3.39208035]
[1759071954816,2.72208035,203.14,203.09,2.72208035]
[1759071955106,0.68,203.14,203.09,3.39208035]
[1759071955660,26.0,203.19,203.09,3.39208035]
[1759071955661,0.68,203.16,203.09,2.72208035]
[1759071955797,0.68,203.19,203.12,2.72208035]
[1759071955990,0.68,203.19,203.12,3.39208035]
[1759071956197,6.82301777,203.17,203.12,7.49301777]
[1759071956412,6.82301777,203.17,203.08,4.92413289]
[1759071956413,7.50301777,203.19,203.13,0.67]
[1759071956590,6.82301777,203.18,203.13,0.67]
[1759071957008,7.50301777,203.18,203.13,0.67]
[1759071959000,7.50301777,203.18,203.12,6.82301777]
[1759071959912,6.82301777,203.17,203.11,7.49301777]
[1759071960311,7.50301777,203.18,203.12,7.49301777]
[1759071960508,6.82301777,203.18,203.12,7.49301777]
[1759071960818,6.82301777,203.18,203.13,7.49301777]
[1759071961001,6.82301777,203.18,203.13,0.67]
[1759071961205,6.82301777,203.14,203.08,0.67]
[1759071961408,6.82301777,203.11,203.05,7.49301777]
[1759071962306,6.82301777,203.12,203.07,12.31041953]
[1759071962507,6.82301777,203.12,203.07,12.98041953]
[1759071962820,0.68,203.11,203.07,0.67]
[1759071964004,6.82301777,203.13,203.07,0.67]
[1759071964203,0.68,203.14,203.08,6.82301777]
[1759071964404,0.68,203.14,203.08,7.49301777]
[1759071965199,7.50301777,203.14,203.08,7.49301777]
[1759071966817,7.50301777,203.14,203.08,12.41718107]
[1759071966999,7.50301777,203.14,203.08,7.49301777]
[1759071967200,6.82301777,203.13,203.08,0.67]
[1759071967502,0.68,203.19,203.1,6.82301777]
[1759071967704,6.82301777,203.18,203.11,0.67]
[1759071967915,7.50301777,203.19,203.13,6.82301777]
[1759071968416,7.50301777,203.18,203.11,0.67]
[1759071968625,7.50301777,203.18,203.12,6.82301777]
[1759071969515,7.50301777,203.18,203.11,7.49301777]
[1759071969711,38.66,203.21,203.11,7.49301777]
[1759071969712,7.50301777,203.17,203.11,7.49301777]
[1759071969894,6.82301777,203.13,203.07,12.41725808]
[1759071970099,6.82301777,203.13,203.07,7.49301777]
[1759071970299,6.82301777,203.12,203.06,6.82301777]
[1759071970521,6.82301777,203.1,203.04,7.49301777]
[1759071971222,6.82301777,203.1,203.04,0.67]
[1759071971522,6.82301777,203.1,203.04,7.49301777]
[1759071972100,7.50301777,203.09,203.04,0.67]
[1759071972509,6.82301777,203.11,203.05,7.53301777]
[1759071973218,7.50301777,203.11,203.05,7.53301777]
[1759071973528,6.82301777,203.1,203.05,0.71]
[1759071973714,6.82301777,203.1,203.05,7.53301777]
[1759071973914,7.50301777,203.1,203.05,7.53301777]
[1759071974713,0.68,203.09,203.04,6.82301777]
[1759071974920,0.68,203.09,203.04,7.53301777]
[1759071975638,7.50301777,203.08,203.02,6.82301777]
[1759071976127,7.50301777,203.08,203.02,7.53301777]
[1759071976421,3.40254972,203.08,203.03,2.72254972]
[1759071976630,0.68,203.08,203.03,3.43254972]
[1759071977202,3.40254972,203.08,203.03,0.71]
[1759071977406,2.72254972,203.06,203.01,0.2]
[1759071977723,3.40254972,203.06,203.01,0.91]
[1759071978517,0.68,203.05,202.98,5.12606788]
[1759071978718,26.0,203.01,202.92,0.71]
[1759071978924,2.72254972,202.96,202.92,0.71]
[1759071979107,2.72254972,202.93,202.9,0.2]
[1759071979308,2.72254972,202.92,202.9,0.2]
[1759071980725,0.38,202.95,202.9,0.2]
[1759071980918,2.72254972,202.92,202.9,0.91]
[1759071981112,2.72254972,202.92,202.9,0.2]
[1759071982039,0.38,202.91,202.9,0.2]
[1759071982210,7.22537925,202.91,202.9,0.2]
[1759071982831,0.38,202.91,202.9,0.2]
[1759071983011,7.22537925,202.91,202.9,0.2]
[1759071983213,46.22537925,202.91,202.9,0.2]
[1759071983542,26.0,202.88,202.78,0.91]
[1759071983715,39.4,202.87,202.78,0.91]
[1759071983915,6.84537925,202.8,202.78,0.91]
[1759071984933,6.84537925,202.8,202.78,0.2]
[1759071985724,6.84537925,202.79,202.78,0.2]
[1759071986135,6.84537925,202.82,202.78,0.91]
[1759071986332,6.84537925,202.84,202.78,0.91]
[1759071986533,26.0,202.88,202.79,7.55537925]
[1759071986534,6.84537925,202.86,202.79,7.55537925]
[1759071986708,7.22537925,202.94,202.85,6.84537925]
[1759071986905,7.22537925,202.94,202.86,0.71]
[1759071987137,29.42643686,203.02,202.88,6.84537925]
[1759071987344,6.84537925,202.97,202.89,7.55537925]
[1759071987522,6.84537925,202.97,202.89,0.71]
[1759071987722,0.38,202.99,202.89,7.55537925]
[1759071987917,0.38,202.99,202.9,0.71]
[1759071988241,6.84537925,202.96,202.9,0.71]
[1759071988735,6.84537925,202.97,202.9,7.55537925]
[1759071989935,0.38,202.99,202.91,6.84537925]
[1759071990140,6.84537925,202.99,202.93,6.84537925]
[1759071990515,6.84537925,202.98,202.88,4.92889214]
[1759071990732,6.84537925,202.98,202.85,51.91988759]
[1759071990733,6.84537925,202.95,202.89,7.55537925]
[1759071990915,6.84537925,202.97,202.91,6.84537925]
[1759071991228,6.84537925,202.97,202.91,7.55537925]
[1759071991635,6.84537925,202.98,202.92,0.71]
[1759071991832,6.84537925,202.97,202.92,0.71]
[1759071992034,26.0,202.99,202.92,0.71]
[1759071992219,6.84537925,202.97,202.92,0.71]
[1759071992419,6.84537925,202.97,202.85,26.0]
[1759071992420,6.84537925,202.93,202.88,0.71]
[1759071992622,6.84537925,202.93,202.87,6.84537925]
[1759071992916,6.84537925,202.93,202.88,0.71]
[1759071993154,65.06,202.99,202.85,0.71]
[1759071993155,6.84537925,202.9,202.85,0.71]
[1759071993518,6.84537925,202.89,202.85,0.71]
[1759071994231,6.84537925,202.9,202.85,0.71]
[1759071994430,6.84537925,202.9,202.86,0.71]
[1759071994633,6.84537925,202.9,202.84,0.71]
[1759071994836,6.84537925,202.89,202.84,0.71]
[1759071995135,6.84537925,202.89,202.85,0.71]
[1759071995341,6.84537925,202.88,202.82,7.55537925]
[1759071995534,6.84537925,202.88,202.82,0.71]
[1759071995735,6.84537925,202.87,202.82,0.71]
[1759071995938,6.84537925,202.87,202.83,0.71]
[1759071996140,6.84537925,202.87,202.8,6.84537925]
[1759071996445,6.84537925,202.86,202.8,0.71]
[1759071996748,6.84537925,202.86,202.8,5.64096314]
[1759071996921,6.84537925,202.87,202.81,0.71]
[1759071997119,0.38,202.89,202.81,0.71]
[1759071997120,6.84537925,202.86,202.81,0.71]
[1759071997428,6.84537925,202.85,202.81,0.71]
[1759071997630,6.84537925,202.86,202.81,0.71]
[1759071997830,6.84537925,202.85,202.81,0.71]
[1759071998636,6.84537925,202.85,202.79,13.59559401]
[1759071998834,6.84537925,202.85,202.79,0.71]
[1759071999038,6.84537925,202.84,202.79,0.71]
[1759071999227,6.84537925,202.86,202.8,0.71]
[1759071999427,6.84537925,202.86,202.8,7.55537925]
[1759072000446,6.84537925,202.88,202.81,7.55537925]
[1759072000630,6.84537925,202.89,202.83,6.84537925]
[1759072000820,6.84537925,202.89,202.83,7.55537925]
[1759072001228,6.84537925,202.89,202.83,0.71]
[1759072001560,6.84537925,202.89,202.83,7.55537925]
[1759072002449,26.38,202.91,202.83,7.55537925]
[1759072002746,6.84537925,202.88,202.83,0.71]
[1759072002924,7.22537925,202.87,202.81,0.71]
[1759072003128,0.38,202.92,202.81,12.48606892]
[1759072003447,6.84537925,202.88,202.82,7.55537925]
[1759072003822,6.84537925,202.88,202.83,0.71]
[1759072004046,6.84537925,202.89,202.84,0.71]
[1759072004241,6.84537925,202.87,202.81,6.84537925]
[1759072004632,26.0,202.93,202.8,0.71]
[1759072004633,6.84537925,202.9,202.84,6.84537925]
[1759072004830,6.84537925,202.9,202.85,0.71]
[1759072005050,6.84537925,202.89,202.83,7.55537925]
[1759072006030,6.84537925,202.9,202.84,6.84537925]
[1759072006244,7.22537925,202.92,202.85,7.55537925]
[1759072006430,6.84537925,202.91,202.85,0.71]
[1759072006637,6.84537925,202.91,202.85,7.55537925]
[1759072008250,4.29750945,202.91,202.85,5.00750945]
[1759072009354,4.29750945,202.9,202.85,5.00750945]
[1759072009538,4.29750945,202.9,202.85,0.71]
[1759072009745,26.0,202.93,202.82,5.00750945]
[1759072009746,4.29750945,202.88,202.82,5.00750945]
[1759072009946,4.29750945,202.88,202.82,4.29750945]
[1759072010135,4.29750945,202.87,202.82,0.71]
[1759072010451,4.67750945,202.86,202.8,30.29750945]
[1759072011157,4.29750945,202.86,202.8,35.92841126]
[1759072012249,4.29750945,202.87,202.81,9.92813306]
[1759072012556,4.29750945,202.88,202.82,4.99750945]
[1759072013050,4.29750945,202.86,202.82,0.7]
[1759072013439,4.29750945,202.86,202.8,30.29750945]
[1759072013440,4.29750945,202.85,202.8,0.7]
[1759072013634,4.29750945,202.86,202.8,4.99750945]
[1759072014350,4.29750945,202.88,202.82,4.29750945]
[1759072014655,30.29750945,202.89,202.83,4.99750945]
[1759072015258,4.29750945,202.88,202.83,0.7]
[1759072017054,20.0,202.98,202.83,4.29750945]
[1759072017358,4.29750945,202.91,202.85,4.29750945]
[1759072017658,4.29750945,202.91,202.85,4.99750945]
[1759072017857,4.29750945,202.9,202.83,5.63017931]
[1759072018036,0.38,202.92,202.84,4.29750945]
[1759072018037,26.0,202.91,202.84,4.29750945]
[1759072018237,4.29750945,202.9,202.84,4.29750945]
[1759072019861,4.29750945,202.9,202.84,4.99750945]
[1759072020157,26.38,202.91,202.84,4.99750945]
[1759072020355,4.29750945,202.9,202.84,4.99750945]
[1759072020853,4.29750945,202.85,202.8,0.7]
[1759072021054,4.29750945,202.82,202.78,0.2]
[1759072021241,4.67750945,202.81,202.78,0.2]
[1759072021555,4.29750945,202.8,202.78,0.2]
[1759072021763,4.67750945,202.8,202.78,0.2]
[1759072022064,4.29750945,202.81,202.78,0.2]
[1759072022555,4.29750945,202.82,202.78,0.2]
[1759072023168,4.29750945,202.81,202.78,0.2]
[1759072023342,38.9,202.85,202.78,0.2]
[1759072023343,3.30630799,202.84,202.78,0.2]
[1759072023546,4.29750945,202.8,202.78,0.2]
[1759072024341,26.0,202.82,202.78,0.9]
[1759072024542,4.29750945,202.83,202.78,0.2]
[1759072024742,4.29750945,202.8,202.78,0.2]
[1759072025269,26.0,202.81,202.78,0.2]
[1759072025270,4.67750945,202.79,202.78,0.2]
[1759072025444,4.29750945,202.79,202.78,0.2]
[1759072025641,26.0,202.83,202.78,0.2]
[1759072025869,4.29750945,202.81,202.78,0.2]
[1759072026063,4.29750945,202.8,202.78,0.2]
[1759072026444,0.38,202.82,202.78,0.2]
[1759072026645,4.29750945,202.79,202.78,0.2]
[1759072026863,4.29750945,202.8,202.78,0.2]
[1759072027050,158.88,202.81,202.78,0.2]
[1759072027051,158.88,202.81,202.78,0.9]
[1759072028057,132.88,202.81,202.78,0.2]
[1759072028379,0.38,202.85,202.79,4.99750945]
[1759072028380,4.29750945,202.85,202.79,4.99750945]
[1759072029770,4.29750945,202.84,202.79,0.7]
[1759072030063,4.29750945,202.82,202.78,0.2]
[1759072030266,4.67750945,202.83,202.78,0.2]
[1759072030568,4.67750945,202.83,202.78,0.9]
[1759072032255,4.67750945,202.83,202.78,0.2]
[1759072032550,4.29750945,202.81,202.78,0.2]
[1759072032753,4.29750945,202.79,202.78,0.2]
[1759072033061,4.67750945,202.79,202.78,0.2]
[1759072033260,4.29750945,202.79,202.78,0.2]
[1759072034268,2.12767796,202.79,202.78,0.2]
[1759072034769,1.74767796,202.79,202.78,0.2]
[1759072035072,38.86,202.8,202.78,0.2]
[1759072035073,40.60767796,202.8,202.78,0.2]
[1759072035376,2.12767796,202.79,202.78,0.2]
[1759072036270,4.68278905,202.79,202.78,0.2]
[1759072036862,43.54278905,202.79,202.78,0.2]
[1759072037950,18.27838306,202.79,202.78,0.2]
[1759072038257,57.13838306,202.79,202.78,0.2]
[1759072038746,52.83559401,202.79,202.78,0.2]
[1759072038950,4.68278905,202.79,202.78,0.2]
[1759072039151,26.0,202.79,202.78,0.2]
[1759072039369,30.30278905,202.79,202.78,0.2]
[1759072039674,69.16278905,202.79,202.78,0.2]
[1759072040048,4.30278905,202.79,202.78,0.2]
[1759072040259,43.16278905,202.79,202.78,0.2]
[1759072040466,4.30278905,202.79,202.78,0.2]
[1759072041168,4.30278905,202.82,202.78,0.87]
[1759072041365,4.30278905,202.84,202.79,0.67]
[1759072041566,4.30278905,202.85,202.79,0.67]
[1759072041767,43.18278905,202.85,202.79,0.67]
[1759072042477,69.18278905,202.85,202.79,0.67]
[1759072043169,4.30278905,202.84,202.79,0.67]
[1759072043374,4.30278905,202.84,202.8,0.67]
[1759072043567,4.30278905,202.84,202.78,4.50278905]
[1759072043763,4.30278905,202.84,202.81,0.67]
[1759072048376,4.30278905,202.83,202.78,0.2]
[1759072048583,4.30278905,202.83,202.79,0.67]
[1759072048778,4.30278905,202.83,202.8,0.67]
[1759072050177,4.30278905,202.82,202.78,0.87]
[1759072050378,65.18,202.85,202.79,0.67]
[1759072050574,4.30278905,202.83,202.79,0.67]
[1759072050879,4.30278905,202.83,202.8,0.67]
[1759072051078,4.30278905,202.84,202.8,0.67]
[1759072051278,4.30278905,202.83,202.8,0.67]
[1759072053581,4.30278905,202.83,202.78,0.2]
[1759072053582,4.30278905,202.83,202.78,0.87]
[1759072053779,4.30278905,202.83,202.79,0.67]
[1759072053973,4.30278905,202.83,202.8,0.67]
[1759072055179,4.30278905,202.82,202.78,0.2]
[1759072055389,4.30278905,202.81,202.78,0.2]
[1759072055872,4.30278905,202.8,202.78,0.87]
[1759072056472,4.30278905,202.81,202.78,0.87]
[1759072058173,1.7470862,202.81,202.78,0.87]
[1759072058682,1.7470862,202.81,202.78,0.2]
[1759072058890,1.7470862,202.83,202.79,0.67]
[1759072059194,64.74,202.85,202.8,0.67]
[1759072059397,1.7470862,202.83,202.8,0.67]
[1759072060083,1.7470862,202.82,202.8,0.67]
[1759072061401,1.7470862,202.83,202.8,0.67]
[1759072062895,1.7470862,202.81,202.78,0.87]
[1759072063401,1.7470862,202.8,202.78,0.2]
[1759072063704,1.7470862,202.79,202.78,0.2]
[1759072064397,133.98,202.82,202.78,0.2]
[1759072064598,1.7470862,202.79,202.78,0.2]
[1759072064976,38.72,202.81,202.78,0.2]
[1759072065198,1.7470862,202.79,202.78,0.2]
[1759072066680,1.7470862,202.8,202.78,0.2]
[1759072067902,161.7270862,202.82,202.78,0.2]
[1759072068103,133.6,202.82,202.78,0.2]
[1759072068305,133.6,202.89,202.81,1.7470862]
[1759072068486,3.32360592,202.88,202.84,1.7470862]
[1759072068803,3.32360592,202.88,202.84,2.4170862]
[1759072069006,159.6,202.89,202.84,2.4170862]
[1759072069711,133.6,202.89,202.84,2.4170862]
[1759072069885,133.6,202.89,202.85,2.4170862]
[1759072070084,133.6,202.89,202.86,0.67]
[1759072070394,38.72,202.93,202.88,2.72685088]
[1759072070599,38.72,202.93,202.88,3.40685088]
[1759072071185,42.04150507,202.93,202.88,3.40685088]
[1759072071387,2.72685088,202.91,202.8,4.93074358]
[1759072071590,3.10685088,202.91,202.85,2.72685088]
[1759072071805,41.44685088,202.91,202.85,3.40685088]
[1759072072105,2.72685088,202.92,202.86,0.68]
[1759072072404,41.44685088,202.92,202.86,3.40685088]
[1759072072709,41.44685088,202.92,202.79,39.59559401]
[1759072072710,3.32150507,202.92,202.87,2.72685088]
[1759072073007,38.72,202.94,202.88,3.40685088]
[1759072073209,2.72685088,202.93,202.88,0.68]
[1759072074303,2.72685088,202.93,202.87,2.72685088]
[1759072074508,2.72685088,202.93,202.89,0.68]
[1759072075313,2.72685088,202.93,202.9,0.68]
[1759072076209,28.72685088,202.94,202.9,0.68]
[1759072077595,26.0,202.94,202.91,0.68]
[1759072077803,26.0,202.94,202.92,0.68]
[1759072079516,162.32685088,202.97,202.93,0.68]
[1759072079711,162.32685088,202.97,202.91,2.72685088]
[1759072079912,26.0,202.95,202.94,0.68]
[1759072080104,26.0,202.95,202.92,2.72685088]
[1759072080288,133.6,202.97,202.93,0.68]
[1759072080487,133.6,202.97,202.94,2.72685088]
[1759072080808,0.38,202.96,202.89,0.68]
[1759072081114,2.72685088,202.94,202.89,0.68]
[1759072081314,2.72685088,202.94,202.9,0.68]
[1759072081502,2.72685088,202.94,202.91,0.68]
[1759072081910,0.38,202.96,202.91,0.68]
[1759072082097,2.72685088,202.94,202.91,0.68]
[1759072083625,0.38,203.06,202.94,13.59559401]
[1759072083793,2.72685088,203.07,203.0,2.72685088]
[1759072084000,2.72685088,203.07,203.01,0.68]
[1759072084616,2.72685088,203.09,203.01,0.68]
[1759072084817,38.14685088,203.09,203.03,2.72685088]
[1759072085503,2.72685088,203.08,203.02,3.40685088]
[1759072086124,2.72685088,203.08,203.03,0.68]
[1759072086316,38.14685088,203.09,203.04,0.68]
[1759072086502,26.0,203.08,203.04,0.68]
[1759072086904,2.72685088,203.05,202.98,0.68]
[1759072087118,2.72685088,203.04,202.98,3.40685088]
[1759072087314,2.72685088,203.04,202.99,0.68]
[1759072087506,2.72685088,203.04,203.0,0.68]
[1759072087706,2.72685088,203.05,203.0,0.68]
[1759072087908,0.38,203.07,202.99,2.72685088]
[1759072088217,2.72685088,203.05,203.01,0.68]
[1759072089729,2.72685088,203.06,203.01,0.68]
[1759072091623,28.72685088,203.02,202.95,0.67]
[1759072091825,2.72685088,202.99,202.93,3.39685088]
[1759072092014,2.72685088,202.98,202.94,0.67]
[1759072092210,2.72685088,202.98,202.92,2.72685088]
[1759072092422,0.38,203.01,202.93,14.26559401]
[1759072092624,2.72685088,202.98,202.93,14.26559401]
[1759072092817,2.72685088,202.98,202.94,0.67]
[1759072093027,2.72685088,202.97,202.92,0.67]
[1759072093332,2.72685088,202.97,202.93,0.67]
[1759072093529,2.72685088,202.97,202.94,0.67]
[1759072094509,2.72685088,202.98,202.94,0.67]
[1759072096731,2.72685088,202.97,202.94,0.67]
[1759072098136,2.72685088,202.98,202.94,0.67]
[1759072098328,2.72685088,203.0,202.95,0.67]
[1759072099030,2.72685088,202.99,202.95,0.67]
[1759072101810,2.72685088,202.99,202.96,0.71]
[1759072102010,26.0,203.0,202.96,0.71]
[1759072102235,2.72685088,202.99,202.96,0.71]
[1759072102427,28.72685088,203.0,202.96,0.71]
[1759072102627,133.6,203.05,202.98,2.72685088]
[1759072102826,0.38,203.08,203.01,2.72685088]
[1759072103018,0.38,203.08,203.03,2.72685088]
[1759072103227,26.0,203.08,203.04,0.71]
[1759072103720,3.10685088,203.1,203.03,2.72685088]
[1759072103926,26.0,203.08,203.03,2.72685088]
[1759072104132,26.0,203.08,203.03,3.43685088]
[1759072105010,26.0,203.09,203.03,2.72685088]
[1759072105217,26.0,203.09,203.05,2.72685088]
[1759072105414,26.0,203.09,203.04,0.71]
[1759072105935,26.0,203.09,203.04,3.43685088]
[1759072106134,2.72685088,203.06,202.98,0.71]
[1759072106339,2.72685088,203.06,203.0,2.72685088]
[1759072106638,3.10685088,203.07,203.01,0.71]
[1759072106836,2.72685088,203.06,203.01,0.71]